[Event "36th European Club Cup 2021"]
[Site "Struga"]
[Date "2021.09.21"]
[Round "4.30"]
[White "Chatalbashev, Boris"]
[Black "Carroll, Peter"]
[Result "1-0"]
[ECO "E43"]
[WhiteElo "2530"]
[BlackElo "2059"]
[Annotator "ChessBase"]
[PlyCount "75"]
[EventDate "2021.09.18"]
[EventType "team-tourn"]
[EventCountry "MKD"]
[SourceTitle "playchess.com"]
[Source "ChessBase"]
[SourceQuality "1"]
[TimeControl "40/5400+30:1800+30"]

1. d4 {[%emt 0:00:03]} Nf6 {[%emt 0:00:48]} 2. Nf3 {[%emt 0:00:07]} e6 {
[%emt 0:00:04]} 3. c4 {[%emt 0:00:09]} b6 {[%emt 0:00:03]} 4. Nc3 {[%emt 0:00:
40]} Bb4 {[%emt 0:00:36]} 5. e3 {[%emt 0:00:07]} Bb7 {[%emt 0:00:04]} 6. Bd3 {
[%emt 0:00:05]} O-O {[%emt 0:00:56]} 7. O-O {[%emt 0:00:07]} c5 {[%emt 0:00:03]
} 8. Bd2 {[%emt 0:01:18]} cxd4 {[%emt 0:00:31]} 9. exd4 {[%emt 0:00:18]} d5 {
[%emt 0:00:45]} 10. cxd5 {[%emt 0:01:36]} Nxd5 {[%emt 0:04:50]} 11. Re1 {
[%emt 0:12:07]} Nd7 {[%emt 0:02:38]} 12. Rc1 {[%emt 0:00:48]} Rc8 {[%emt 0:03:
01]} 13. h4 {[%emt 0:11:02]} Nxc3 {[%emt 0:22:48]} 14. bxc3 {[%emt 0:00:17]}
Ba3 {[%emt 0:00:13]} 15. Rb1 {[%emt 0:01:33]} Bd5 {[%emt 0:03:25]} 16. c4 {
[%emt 0:02:09]} Bxf3 {[%emt 0:02:46]} 17. Qxf3 {[%emt 0:00:08]} Qxh4 {[%emt 0:
00:51]} 18. Rb5 {[%emt 0:21:26]} Qf6 {[%emt 0:04:44]} 19. Qg3 {[%emt 0:12:17]}
g6 {[%emt 0:05:53]} 20. Re4 {[%emt 0:00:26]} Rfe8 {[%emt 0:00:58]} 21. c5 {
[%emt 0:07:08]} bxc5 {[%emt 0:02:25]} 22. Rb7 {[%emt 0:00:05]} c4 {[%emt 0:06:
08]} 23. Bc2 {[%emt 0:00:41]} Qe7 {[%emt 0:00:35]} 24. Rxd7 {[%emt 0:05:32]}
Qxd7 {[%emt 0:00:08]} 25. Qxa3 {[%emt 0:00:03]} f5 {[%emt 0:01:30]} 26. Ba4 {
[%emt 0:03:28]} Qb7 {[%emt 0:00:17]} 27. Re5 {[%emt 0:01:49]} Red8 {[%emt 0:02:
11]} 28. Bc3 {[%emt 0:03:16]} Kf7 {[%emt 0:02:34]} 29. Bb5 {[%emt 0:01:58]} a5
{[%emt 0:04:45]} 30. Qxa5 {[%emt 0:03:10]} Rd5 {[%emt 0:00:58]} 31. Qb4 {
[%emt 0:01:52]} Rb8 {[%emt 0:02:01]} 32. a4 {[%emt 0:00:13]} Rxe5 {[%emt 0:00:
12]} 33. dxe5 {[%emt 0:00:02]} Qd5 {[%emt 0:06:09]} 34. Qd6 {[%emt 0:00:36]}
Rb7 {[%emt 0:02:21]} 35. Bb4 {[%emt 0:03:17]} Qxd6 {[%emt 0:01:40]} 36. exd6 {
[%emt 0:00:11]} Rb8 {[%emt 0:00:41]} 37. d7 {[%emt 0:00:18]} g5 {[%emt 0:01:33]
} 38. Bxc4 {[%emt 0:01:03]} 1-0

[Event "36th European Club Cup 2021"]
[Site "Struga"]
[Date "2021.09.21"]
[Round "4.34"]
[White "Ibanez Aullana, Ramon"]
[Black "Urkedal, Frode Olav Olsen"]
[Result "0-1"]
[ECO "D79"]
[WhiteElo "2269"]
[BlackElo "2568"]
[Annotator "ChessBase"]
[PlyCount "80"]
[EventDate "2021.09.18"]
[EventType "team-tourn"]
[EventCountry "MKD"]
[SourceTitle "playchess.com"]
[Source "ChessBase"]
[SourceQuality "1"]
[TimeControl "40/5400+30:1800+30"]

1. Nf3 {[%emt 0:00:09]} d5 {[%emt 0:00:08]} 2. g3 {[%emt 0:00:10]} g6 {[%emt 0:
00:11]} 3. Bg2 {[%emt 0:00:33]} Bg7 {[%emt 0:00:06]} 4. d4 {[%emt 0:02:00]} Nf6
{[%emt 0:00:08]} 5. O-O {[%emt 0:00:52]} O-O {[%emt 0:00:06]} 6. c4 {[%emt 0:
00:13]} c6 {[%emt 0:00:16]} 7. cxd5 {[%emt 0:02:09]} cxd5 {[%emt 0:00:06]} 8.
Nc3 {[%emt 0:00:51]} Nc6 {[%emt 0:01:00]} 9. Ne5 {[%emt 0:00:30]} Bf5 {[%emt 0:
00:35]} 10. Nxc6 {[%emt 0:05:57]} bxc6 {[%emt 0:00:07]} 11. Na4 {[%emt 0:00:24]
} Nd7 {[%emt 0:01:09]} 12. Be3 {[%emt 0:01:34]} Qa5 {[%emt 0:03:43]} 13. b3 {
[%emt 0:03:45]} Rac8 {[%emt 0:00:27]} 14. Rc1 {[%emt 0:03:55]} Rfe8 {[%emt 0:
04:54]} 15. Qe1 {[%emt 0:01:02]} Qa6 {[%emt 0:05:40]} 16. Qd2 {[%emt 0:07:22]}
e5 {[%emt 0:05:47]} 17. Rfe1 {[%emt 0:05:36]} e4 {[%emt 0:03:37]} 18. Bh6 {
[%emt 0:05:30]} Bxh6 {[%emt 0:22:48]} 19. Qxh6 {[%emt 0:00:13]} Qa5 {[%emt 0:
01:17]} 20. Qe3 {[%emt 0:01:50]} h5 {[%emt 0:00:38]} 21. Qc3 {[%emt 0:12:18]}
Qd8 {[%emt 0:02:11]} 22. Qe3 {[%emt 0:00:33]} Kg7 {[%emt 0:09:30]} 23. h3 {
[%emt 0:01:58]} Qf6 {[%emt 0:01:53]} 24. Nc5 {[%emt 0:04:09]} Nf8 {[%emt 0:00:
07]} 25. Rc3 {[%emt 0:03:11]} g5 {[%emt 0:00:05]} 26. b4 {[%emt 0:07:01]} Ng6 {
[%emt 0:00:22]} 27. Nb3 {[%emt 0:00:38]} Bd7 {[%emt 0:02:03]} 28. Nc5 {[%emt 0:
03:23]} Bf5 {[%emt 0:01:05]} 29. Nb3 {[%emt 0:00:37]} h4 {[%emt 0:00:07]} 30.
Rec1 {[%emt 0:03:57]} g4 {[%emt 0:10:22]} 31. gxh4 {[%emt 0:04:04]} gxh3 {
[%emt 0:00:38]} 32. Bf1 {[%emt 0:07:53]} Qxh4 {[%emt 0:05:17]} 33. Rxc6 {
[%emt 0:05:32]} Rxc6 {[%emt 0:04:56]} 34. Rxc6 {[%emt 0:00:01]} h2+ {[%emt 0:
00:46]} 35. Kh1 {[%emt 0:00:10]} Rh8 {[%emt 0:00:29]} 36. Qg3 {[%emt 0:01:12]}
Qe7 {[%emt 0:09:25]} 37. b5 {[%emt 0:03:44]} e3 {[%emt 0:01:08]} 38. f3 {
[%emt 0:01:34]} Qh4 {[%emt 0:00:35]} 39. Qg2 {[%emt 0:02:31]} Qf4 {[%emt 0:01:
15]} 40. Nc5 {[%emt 0:00:00]} Rh6 {[%emt 0:05:33]} 0-1

[Event "36th European Club Cup 2021"]
[Site "Struga"]
[Date "2021.09.21"]
[Round "4.35"]
[White "Haldorsen, Benjamin"]
[Black "Torres Sanchez, Jose"]
[Result "0-1"]
[ECO "B41"]
[WhiteElo "2465"]
[BlackElo "2271"]
[Annotator "ChessBase"]
[PlyCount "64"]
[EventDate "2021.09.18"]
[EventType "team-tourn"]
[EventCountry "MKD"]
[SourceTitle "playchess.com"]
[Source "ChessBase"]
[SourceQuality "1"]
[TimeControl "40/5400+30:1800+30"]

1. e4 {[%emt 0:00:18]} c5 {[%emt 0:00:09]} 2. Nf3 {[%emt 0:00:20]} e6 {[%emt 0:
00:41]} 3. d4 {[%emt 0:00:38]} cxd4 {[%emt 0:00:09]} 4. Nxd4 {[%emt 0:00:05]}
a6 {[%emt 0:00:14]} 5. c4 {[%emt 0:01:06]} Nf6 {[%emt 0:01:02]} 6. Nc3 {
[%emt 0:00:10]} Qc7 {[%emt 0:01:09]} 7. Be2 {[%emt 0:00:17]} Nc6 {[%emt 0:06:
45]} 8. Nxc6 {[%emt 0:10:29]} bxc6 {[%emt 0:12:15]} 9. a3 {[%emt 0:07:37]} Bd6
{[%emt 0:07:09]} 10. Be3 {[%emt 0:03:26]} c5 {[%emt 0:02:05]} 11. Qd3 {[%emt 0:
14:38]} Bb7 {[%emt 0:06:19]} 12. g4 {[%emt 0:06:42]} h6 {[%emt 0:02:46]} 13. h4
{[%emt 0:01:55]} Be5 {[%emt 0:06:18]} 14. f3 {[%emt 0:00:47]} Rb8 {[%emt 0:18:
21]} 15. Rb1 {[%emt 0:09:07]} Rd8 {[%emt 0:04:40]} 16. Kf1 {[%emt 0:13:31]} d5
{[%emt 0:00:38]} 17. cxd5 {[%emt 0:00:50]} exd5 {[%emt 0:00:06]} 18. exd5 {
[%emt 0:01:06]} Nxd5 {[%emt 0:00:21]} 19. Nxd5 {[%emt 0:01:56]} Rxd5 {[%emt 0:
00:12]} 20. Qc2 {[%emt 0:00:08]} O-O {[%emt 0:03:39]} 21. b4 {[%emt 0:00:39]}
Bd4 {[%emt 0:00:34]} 22. Bxd4 {[%emt 0:06:08]} Rxd4 {[%emt 0:00:06]} 23. bxc5 {
[%emt 0:00:06]} Rfd8 {[%emt 0:02:05]} 24. g5 {[%emt 0:05:15]} Rd2 {[%emt 0:11:
13]} 25. Qc3 {[%emt 0:00:06]} h5 {[%emt 0:02:18]} 26. Qe3 {[%emt 0:03:39]} Bc6
{[%emt 0:00:55]} 27. g6 {[%emt 0:06:08]} fxg6 {[%emt 0:00:20]} 28. Rb6 {
[%emt 0:01:34]} Qd7 {[%emt 0:02:13]} 29. Rh2 {[%emt 0:01:25]} Kh7 {[%emt 0:00:
50]} 30. Rg2 {[%emt 0:00:59]} Re8 {[%emt 0:00:59]} 31. Qg5 {[%emt 0:01:29]}
Rd1+ {[%emt 0:00:09]} 32. Kf2 {[%emt 0:00:51]} Rxe2+ {[%emt 0:00:06]} 0-1

[Event "36th European Club Cup 2021"]
[Site "Struga"]
[Date "2021.09.21"]
[Round "4.36"]
[White "Gimeno Higueras, Roberto"]
[Black "Ranaldi, Lucas"]
[Result "0-1"]
[ECO "B11"]
[WhiteElo "2214"]
[BlackElo "2325"]
[Annotator "NA"]
[PlyCount "52"]
[EventDate "2021.09.18"]
[EventType "team-tourn"]
[EventCountry "MKD"]
[SourceTitle "playchess.com"]
[Source "ChessBase"]
[SourceQuality "1"]
[TimeControl "40/5400+30:1800+30"]

1. e4 {[%emt 0:00:11]} c6 {[%emt 0:00:08]} 2. Nc3 {[%emt 0:00:41]} d5 {[%emt 0:
00:12]} 3. Nf3 {[%emt 0:00:19]} Bg4 {[%emt 0:01:35]} 4. h3 {[%emt 0:00:37]}
Bxf3 {[%emt 0:00:07]} 5. Qxf3 {[%emt 0:00:08]} Nf6 {[%emt 0:00:07]} 6. d3 {
[%emt 0:03:04]} e6 {[%emt 0:00:34]} 7. Bd2 {[%emt 0:02:01]} Qb6 {[%emt 0:02:15]
} 8. O-O-O {[%emt 0:06:35]} d4 {[%emt 0:00:38]} 9. Ne2 {[%emt 0:01:44]} Na6 {
[%emt 0:00:22]} 10. Qf4 {[%emt 0:09:57]} Bc5 {[%emt 0:25:49]} 11. g4 {[%emt 0:
08:09]} Nc7 {[%emt 0:07:44]} 12. Qg5 {[%emt 0:11:37]} O-O {[%emt 0:05:57]} 13.
Bf4 {[%emt 0:19:56]} Nd7 {[%emt 0:10:37]} 14. Bxc7 {[%emt 0:07:48]} Qxc7 {
[%emt 0:00:09]} 15. f4 {[%emt 0:00:10]} a5 {[%emt 0:02:31]} 16. f5 {[%emt 0:01:
54]} a4 {[%emt 0:07:22]} 17. f6 {[%emt 0:01:05]} g6 {[%emt 0:00:21]} 18. Bg2 {
[%emt 0:03:50]} Rfd8 {[%emt 0:07:38]} 19. h4 {[%emt 0:03:42]} Ra5 {[%emt 0:09:
28]} 20. h5 {[%emt 0:08:44]} Be7 {[%emt 0:02:17]} 21. Qxa5 {[%emt 0:02:39]}
Qxa5 {[%emt 0:00:12]} 22. fxe7 {[%emt 0:00:01]} Qg5+ {[%emt 0:00:41]} 23. Kb1 {
[%emt 0:00:04]} Qxe7 {[%emt 0:00:11]} 24. hxg6 {[%emt 0:00:03]} hxg6 {[%emt 0:
01:47]} 25. Nxd4 {[%emt 0:01:42]} Ne5 {[%emt 0:02:42]} 26. Ne2 {[%emt 0:02:04]}
Nxg4 {[%emt 0:00:36]} 0-1

[Event "36th European Club Cup 2021"]
[Site "Struga"]
[Date "2021.09.21"]
[Round "4.39"]
[White "Lokander, Martin"]
[Black "Antipov, Mikhail Al."]
[Result "1/2-1/2"]
[ECO "D85"]
[WhiteElo "2452"]
[BlackElo "2607"]
[Annotator "ChessBase"]
[PlyCount "58"]
[EventDate "2021.09.18"]
[EventType "team-tourn"]
[EventCountry "MKD"]
[SourceTitle "playchess.com"]
[Source "ChessBase"]
[SourceQuality "1"]
[TimeControl "40/5400+30:1800+30"]

1. d4 {[%emt 0:00:09]} Nf6 {[%emt 0:00:06]} 2. Nf3 {[%emt 0:00:19]} g6 {
[%emt 0:00:06]} 3. c4 {[%emt 0:00:38]} Bg7 {[%emt 0:00:05]} 4. Nc3 {[%emt 0:00:
05]} d5 {[%emt 0:00:05]} 5. cxd5 {[%emt 0:03:25]} Nxd5 {[%emt 0:00:07]} 6. e4 {
[%emt 0:00:04]} Nxc3 {[%emt 0:00:07]} 7. bxc3 {[%emt 0:00:04]} c5 {[%emt 0:00:
06]} 8. Bb5+ {[%emt 0:01:59]} Nc6 {[%emt 0:00:17]} 9. d5 {[%emt 0:00:38]} Qa5 {
[%emt 0:00:38]} 10. Rb1 {[%emt 0:00:32]} a6 {[%emt 0:01:05]} 11. Bxc6+ {
[%emt 0:01:46]} bxc6 {[%emt 0:00:10]} 12. O-O {[%emt 0:00:48]} O-O {[%emt 0:01:
56]} 13. dxc6 {[%emt 0:00:33]} Bg4 {[%emt 0:12:14]} 14. h3 {[%emt 0:01:48]}
Bxf3 {[%emt 0:00:49]} 15. Qxf3 {[%emt 0:00:09]} Rac8 {[%emt 0:05:23]} 16. e5 {
[%emt 0:00:11]} Bxe5 {[%emt 0:01:31]} 17. Bg5 {[%emt 0:00:05]} Qc7 {[%emt 0:12:
26]} 18. Rfe1 {[%emt 0:01:14]} Bd6 {[%emt 0:01:15]} 19. Rb7 {[%emt 0:00:13]}
Qxc6 {[%emt 0:00:16]} 20. Qxc6 {[%emt 0:00:04]} Rxc6 {[%emt 0:00:07]} 21. Bxe7
{[%emt 0:00:08]} Re8 {[%emt 0:02:40]} 22. Kf1 {[%emt 0:00:06]} Bxe7 {[%emt 0:
01:33]} 23. Rexe7 {[%emt 0:00:36]} Rxe7 {[%emt 0:00:08]} 24. Rxe7 {[%emt 0:00:
05]} Rb6 {[%emt 0:00:18]} 25. Re4 {[%emt 0:03:52]} Rb1+ {[%emt 0:11:41]} 26.
Re1 {[%emt 0:00:07]} Rb2 {[%emt 0:00:05]} 27. Re2 {[%emt 0:00:02]} Rb1+ {
[%emt 0:00:10]} 28. Re1 {[%emt 0:00:04]} Rb5 {[%emt 0:00:06]} 29. Re4 {[%emt 0:
00:45]} Rb1+ {[%emt 0:00:06]} 1/2-1/2

[Event "36th European Club Cup 2021"]
[Site "Struga"]
[Date "2021.09.21"]
[Round "4.40"]
[White "Lomasov, Semyon"]
[Black "Ertan, Can"]
[Result "1-0"]
[ECO "E15"]
[WhiteElo "2526"]
[BlackElo "2384"]
[Annotator "ChessBase"]
[PlyCount "71"]
[EventDate "2021.09.18"]
[EventType "team-tourn"]
[EventCountry "MKD"]
[SourceTitle "playchess.com"]
[Source "ChessBase"]
[SourceQuality "1"]
[TimeControl "40/5400+30:1800+30"]

1. d4 {[%emt 0:00:04]} Nf6 {[%emt 0:00:28]} 2. c4 {[%emt 0:00:05]} e6 {[%emt 0:
00:04]} 3. Nf3 {[%emt 0:00:06]} b6 {[%emt 0:00:28]} 4. g3 {[%emt 0:00:04]} Ba6
{[%emt 0:00:12]} 5. b3 {[%emt 0:00:05]} Bb4+ {[%emt 0:00:05]} 6. Bd2 {[%emt 0:
00:07]} Be7 {[%emt 0:00:04]} 7. Bg2 {[%emt 0:00:09]} d5 {[%emt 0:00:23]} 8. O-O
{[%emt 0:00:38]} c6 {[%emt 0:00:36]} 9. Ne5 {[%emt 0:00:17]} Nfd7 {[%emt 0:00:
30]} 10. Nxd7 {[%emt 0:00:35]} Qxd7 {[%emt 0:02:16]} 11. Bc3 {[%emt 0:26:30]}
dxc4 {[%emt 0:06:08]} 12. Nd2 {[%emt 0:07:19]} cxb3 {[%emt 0:01:21]} 13. axb3 {
[%emt 0:00:02]} O-O {[%emt 0:02:44]} 14. Nc4 {[%emt 0:00:19]} Bf6 {[%emt 0:03:
45]} 15. Qc2 {[%emt 0:14:22]} Bb7 {[%emt 0:18:00]} 16. Rfd1 {[%emt 0:00:26]}
Qc7 {[%emt 0:03:36]} 17. Be4 {[%emt 0:16:17]} h6 {[%emt 0:00:28]} 18. Bd2 {
[%emt 0:00:06]} Bxd4 {[%emt 0:02:59]} 19. Bf4 {[%emt 0:00:25]} e5 {[%emt 0:00:
06]} 20. Rxd4 {[%emt 0:00:34]} exf4 {[%emt 0:00:03]} 21. Nd6 {[%emt 0:02:17]}
fxg3 {[%emt 0:05:17]} 22. hxg3 {[%emt 0:00:03]} Rd8 {[%emt 0:08:42]} 23. Rad1 {
[%emt 0:07:43]} Na6 {[%emt 0:09:28]} 24. Bh7+ {[%emt 0:06:02]} Kf8 {[%emt 0:00:
34]} 25. Nxf7 {[%emt 0:00:08]} Rxd4 {[%emt 0:13:40]} 26. Rxd4 {[%emt 0:00:05]}
Nc5 {[%emt 0:00:03]} 27. Qg6 {[%emt 0:06:42]} Qe7 {[%emt 0:06:25]} 28. Nd8 {
[%emt 0:06:21]} Qf6 {[%emt 0:06:34]} 29. Rf4 {[%emt 0:00:03]} Qxf4 {[%emt 0:00:
01]} 30. gxf4 {[%emt 0:00:08]} Rxd8 {[%emt 0:00:02]} 31. Qf5+ {[%emt 0:00:43]}
Ke7 {[%emt 0:00:08]} 32. Qe5+ {[%emt 0:00:03]} Kf7 {[%emt 0:06:29]} 33. Qf5+ {
[%emt 0:00:06]} Ke7 {[%emt 0:00:10]} 34. Qe5+ {[%emt 0:00:01]} Kf7 {[%emt 0:00:
06]} 35. f5 {[%emt 0:01:05]} Bc8 {[%emt 0:03:09]} 36. Qc7+ {[%emt 0:00:17]} 1-0

[Event "36th European Club Cup 2021"]
[Site "Struga"]
[Date "2021.09.21"]
[Round "4.41"]
[White "Arman, Deniz"]
[Black "Arngrimsson, Dagur"]
[Result "1/2-1/2"]
[ECO "C69"]
[WhiteElo "2336"]
[BlackElo "2383"]
[Annotator "NA"]
[PlyCount "102"]
[EventDate "2021.09.18"]
[EventType "team-tourn"]
[EventCountry "MKD"]
[SourceTitle "playchess.com"]
[Source "ChessBase"]
[SourceQuality "1"]
[TimeControl "40/5400+30:1800+30"]

1. e4 {[%emt 0:01:04]} e5 {[%emt 0:00:07]} 2. Nf3 {[%emt 0:00:19]} Nc6 {
[%emt 0:00:07]} 3. Bb5 {[%emt 0:00:17]} a6 {[%emt 0:00:06]} 4. Bxc6 {[%emt 0:
00:07]} dxc6 {[%emt 0:00:05]} 5. O-O {[%emt 0:00:20]} f6 {[%emt 0:01:10]} 6. d4
{[%emt 0:00:13]} exd4 {[%emt 0:00:06]} 7. Nxd4 {[%emt 0:00:06]} c5 {[%emt 0:00:
20]} 8. Nb3 {[%emt 0:00:36]} Qxd1 {[%emt 0:02:43]} 9. Rxd1 {[%emt 0:00:05]} Bd7
{[%emt 0:18:13]} 10. Bf4 {[%emt 0:01:59]} O-O-O {[%emt 0:00:31]} 11. Nc3 {
[%emt 0:00:58]} Be6 {[%emt 0:10:57]} 12. Rxd8+ {[%emt 0:01:58]} Kxd8 {[%emt 0:
00:07]} 13. Rd1+ {[%emt 0:00:05]} Kc8 {[%emt 0:00:11]} 14. Nd5 {[%emt 0:00:56]}
Bxd5 {[%emt 0:00:46]} 15. Rxd5 {[%emt 0:00:04]} b6 {[%emt 0:01:19]} 16. Rd1 {
[%emt 0:08:32]} Ne7 {[%emt 0:01:33]} 17. Nd2 {[%emt 0:01:56]} h5 {[%emt 0:11:
14]} 18. h3 {[%emt 1:19:55]} g5 {[%emt 0:02:49]} 19. Bh2 {[%emt 0:00:00]} Bg7 {
[%emt 0:01:12]} 20. Nc4 {[%emt 0:00:00]} f5 {[%emt 0:13:08]} 21. exf5 {[%emt 0:
00:00]} Nxf5 {[%emt 0:00:10]} 22. Rd5 {[%emt 0:00:00]} Rd8 {[%emt 0:08:01]} 23.
Rxd8+ {[%emt 0:00:00]} Kxd8 {[%emt 0:00:29]} 24. c3 {[%emt 0:00:00]} b5 {
[%emt 0:03:26]} 25. Nd2 {[%emt 0:00:00]} c4 {[%emt 0:05:51]} 26. Ne4 {[%emt 0:
00:00]} b4 {[%emt 0:01:39]} 27. Kf1 {[%emt 0:00:00]} a5 {[%emt 0:11:00]} 28.
Ke2 {[%emt 0:00:00]} g4 {[%emt 0:02:52]} 29. hxg4 {[%emt 0:00:00]} hxg4 {
[%emt 0:00:06]} 30. Bf4 {[%emt 0:00:00]} c6 {[%emt 0:03:45]} 31. Kd2 {[%emt 0:
00:00]} a4 {[%emt 0:00:18]} 32. Bg5+ {[%emt 0:00:00]} Kc7 {[%emt 0:00:21]} 33.
Kc2 {[%emt 0:00:00]} b3+ {[%emt 0:00:08]} 34. Kb1 {[%emt 0:00:00]} Kb6 {
[%emt 0:00:32]} 35. g3 {[%emt 0:00:00]} Kb5 {[%emt 0:01:55]} 36. Bf4 {[%emt 0:
00:00]} c5 {[%emt 0:00:37]} 37. Nd2 {[%emt 0:00:00]} Bf6 {[%emt 0:00:26]} 38.
Nf1 {[%emt 0:00:00]} a3 {[%emt 0:00:28]} 39. Nh2 {[%emt 0:00:00]} axb2 {
[%emt 0:00:18]} 40. Kxb2 {[%emt 0:00:00]} bxa2 {[%emt 0:00:00]} 41. Bd2 {
[%emt 0:00:00]} Bg7 {[%emt 0:15:06]} 42. Kxa2 {[%emt 0:00:00]} Nd6 {[%emt 0:00:
43]} 43. Kb2 {[%emt 0:00:00]} Ne4 {[%emt 0:00:16]} 44. Be1 {[%emt 0:00:00]} Nf6
{[%emt 0:06:04]} 45. Nf1 {[%emt 0:04:38]} Nd7 {[%emt 0:01:16]} 46. Bd2 {
[%emt 0:03:58]} Ne5 {[%emt 0:01:11]} 47. Kc2 {[%emt 0:11:54]} Nd3 {[%emt 0:00:
38]} 48. Be3 {[%emt 0:00:15]} Ne1+ {[%emt 0:00:33]} 49. Kd2 {[%emt 0:12:39]}
Nf3+ {[%emt 0:00:20]} 50. Kc2 {[%emt 0:00:36]} Ne1+ {[%emt 0:00:06]} 51. Kd2 {
[%emt 0:00:10]} Nf3+ {[%emt 0:00:06]} 1/2-1/2

[Event "36th European Club Cup 2021"]
[Site "Struga"]
[Date "2021.09.21"]
[Round "4.42"]
[White "Lagerman, Robert"]
[Black "Thorn, Eric"]
[Result "0-1"]
[ECO "C47"]
[WhiteElo "2300"]
[BlackElo "2292"]
[Annotator "NA"]
[PlyCount "70"]
[EventDate "2021.09.18"]
[EventType "team-tourn"]
[EventCountry "MKD"]
[SourceTitle "playchess.com"]
[Source "ChessBase"]
[SourceQuality "1"]
[TimeControl "40/5400+30:1800+30"]

1. e4 {[%emt 0:00:01]} e5 {[%emt 0:00:14]} 2. Nf3 {[%emt 0:00:06]} Nc6 {
[%emt 0:00:11]} 3. d4 {[%emt 0:00:04]} exd4 {[%emt 0:00:13]} 4. Nxd4 {[%emt 0:
00:09]} Nf6 {[%emt 0:00:15]} 5. Nc3 {[%emt 0:00:28]} Bb4 {[%emt 0:01:01]} 6.
Nxc6 {[%emt 0:00:07]} bxc6 {[%emt 0:00:04]} 7. Bd3 {[%emt 0:00:05]} d5 {
[%emt 0:00:17]} 8. exd5 {[%emt 0:00:48]} O-O {[%emt 0:02:54]} 9. O-O {[%emt 0:
03:33]} cxd5 {[%emt 0:02:18]} 10. Bg5 {[%emt 0:04:46]} Be6 {[%emt 0:00:29]} 11.
Qf3 {[%emt 0:05:38]} h6 {[%emt 0:00:28]} 12. Bxf6 {[%emt 0:23:57]} Qxf6 {
[%emt 0:00:07]} 13. Qxf6 {[%emt 0:00:02]} gxf6 {[%emt 0:00:34]} 14. Ne2 {
[%emt 0:00:08]} Bd6 {[%emt 0:04:03]} 15. Rad1 {[%emt 0:08:03]} c5 {[%emt 0:02:
07]} 16. b3 {[%emt 0:03:21]} Rfd8 {[%emt 0:04:58]} 17. Ng3 {[%emt 0:03:22]} Kf8
{[%emt 0:04:07]} 18. Nf5 {[%emt 0:04:12]} c4 {[%emt 0:04:57]} 19. bxc4 {
[%emt 0:06:51]} dxc4 {[%emt 0:00:05]} 20. Be4 {[%emt 0:11:34]} Bxf5 {[%emt 0:
00:15]} 21. Bxf5 {[%emt 0:00:03]} Rab8 {[%emt 0:02:16]} 22. Rb1 {[%emt 0:11:10]
} Rb6 {[%emt 0:03:05]} 23. g3 {[%emt 0:06:26]} Bc5 {[%emt 0:03:18]} 24. Rbd1 {
[%emt 0:02:02]} Rbd6 {[%emt 0:02:02]} 25. Rxd6 {[%emt 0:02:05]} Rxd6 {[%emt 0:
00:11]} 26. Rb1 {[%emt 0:00:36]} Bb6 {[%emt 0:04:15]} 27. g4 {[%emt 0:01:28]}
Rd2 {[%emt 0:01:48]} 28. Rb4 {[%emt 0:01:23]} Bxf2+ {[%emt 0:02:10]} 29. Kf1 {
[%emt 0:00:10]} c3 {[%emt 0:56:18]} 30. Rb8+ {[%emt 0:01:10]} Kg7 {[%emt 0:00:
00]} 31. Rb7 {[%emt 0:00:38]} Bb6 {[%emt 0:00:00]} 32. h4 {[%emt 0:00:25]} h5 {
[%emt 0:00:00]} 33. Rd7 {[%emt 0:00:21]} Rf2+ {[%emt 0:00:00]} 34. Ke1 {
[%emt 0:00:02]} Rf4 {[%emt 0:00:00]} 35. Rd3 {[%emt 0:01:51]} hxg4 {[%emt 0:00:
00]} 0-1

[Event "36th European Club Cup 2021"]
[Site "Struga"]
[Date "2021.09.21"]
[Round "4.43"]
[White "Nevednichy, Vladislav"]
[Black "Kjartansson, Gudmundur"]
[Result "1-0"]
[ECO "B50"]
[WhiteElo "2498"]
[BlackElo "2447"]
[Annotator "ChessBase"]
[PlyCount "59"]
[EventDate "2021.09.18"]
[EventType "team-tourn"]
[EventCountry "MKD"]
[SourceTitle "playchess.com"]
[Source "ChessBase"]
[SourceQuality "1"]
[TimeControl "40/5400+30:1800+30"]

1. e4 {[%emt 0:00:03]} c5 {[%emt 0:00:23]} 2. Nf3 {[%emt 0:00:10]} d6 {[%emt 0:
00:06]} 3. c3 {[%emt 0:01:36]} Nf6 {[%emt 0:00:12]} 4. Be2 {[%emt 0:00:21]} g6
{[%emt 0:00:29]} 5. O-O {[%emt 0:00:05]} Bg7 {[%emt 0:00:03]} 6. Bb5+ {[%emt 0:
00:16]} Nbd7 {[%emt 0:05:45]} 7. Re1 {[%emt 0:00:46]} a6 {[%emt 0:01:25]} 8.
Bf1 {[%emt 0:00:34]} O-O {[%emt 0:00:34]} 9. d4 {[%emt 0:00:17]} e5 {[%emt 0:
01:39]} 10. dxe5 {[%emt 0:03:58]} dxe5 {[%emt 0:02:02]} 11. c4 {[%emt 0:04:55]}
Ne8 {[%emt 0:12:41]} 12. Nc3 {[%emt 0:03:33]} Nc7 {[%emt 0:00:24]} 13. Bg5 {
[%emt 0:05:42]} f6 {[%emt 0:00:38]} 14. Be3 {[%emt 0:00:54]} Ne6 {[%emt 0:01:
37]} 15. Nd5 {[%emt 0:04:06]} f5 {[%emt 0:11:46]} 16. a3 {[%emt 0:03:14]} f4 {
[%emt 0:05:03]} 17. Bd2 {[%emt 0:00:08]} g5 {[%emt 0:18:55]} 18. h3 {[%emt 0:
00:22]} Nb8 {[%emt 0:09:22]} 19. b4 {[%emt 0:00:31]} Nc6 {[%emt 0:00:34]} 20.
Bc3 {[%emt 0:04:10]} b6 {[%emt 0:04:17]} 21. Rb1 {[%emt 0:00:35]} Ra7 {[%emt 0:
01:21]} 22. bxc5 {[%emt 0:04:25]} bxc5 {[%emt 0:00:03]} 23. Rb6 {[%emt 0:09:35]
} Bd7 {[%emt 0:00:21]} 24. Qa1 {[%emt 0:06:41]} Ned4 {[%emt 0:00:22]} 25. Bxd4
{[%emt 0:01:08]} exd4 {[%emt 0:00:14]} 26. e5 {[%emt 0:00:53]} Be8 {[%emt 0:01:
53]} 27. Qb1 {[%emt 0:02:48]} h6 {[%emt 0:04:00]} 28. Qe4 {[%emt 0:04:06]} Ne7
{[%emt 0:06:16]} 29. Bd3 {[%emt 0:03:31]} Nf5 {[%emt 0:00:22]} 30. e6 {[%emt 0:
05:51]} 1-0